Cogmind - Beta 16.1 @@@ ROGUE MODE // 2026.05.03 @ 18:27:04 Player: coopco Result: Destroyed by G-50 Soldier with Heavy Laser Performance ------------- Evolutions (5) 2500 Regions Visited (11) 2200 Robots Destroyed (82) 410 Value Destroyed (2833) 2833 Prototype IDs (27) 540 Alien Tech Used (0) 0 Bonus (353) 353 TOTAL SCORE: 8836 Bonus ------- Follower Combat Kills 53 Met Data Miner 300 Cogmind --------- Core Integrity 0/1000 Matter 248/300 Energy 100/100 System Corruption 7% Temperature Cool (9) Movement Core (50) Location -5/Factory Parts ------- > --- POWER (1) -------- (None) > --- PROPULSION (4) --- (None) > --- UTILITY (9) ------ Advanced Signal Interpreter Advanced Terrain Scan Processor Improved Hacking Suite System Guard > --- WEAPON (3) ------- (None) > --- INVENTORY (5) ---- Micro Fission Core Experimental Sensor Array Advanced ECM Suite Cloaking Device Drone Bay (2/2) Peak State ------------ > --- POWER ------------ Light Angular Momentum Engine > --- PROPULSION ------- Improved Gravmag System Antigrav System Antigrav System Combat Gravmag System > --- UTILITY ---------- Large Storage Unit Experimental Sensor Array Advanced Signal Interpreter Advanced Terrain Scan Processor Microactuators Improved Hacking Suite System Shield Advanced System Shield System Guard > --- WEAPON ----------- Chainsword Great Axe Power Sword > --- INVENTORY -------- Micro Fission Core Micro Fission Core Micro Fission Core Micro Fission Core Nuclear Pulse Thruster Cooled Cesium-ion Thruster Field Propulsion Drive Field Propulsion Drive Medium Storage Unit Gravity Neutralizer Improved Sensor Array Improved Melee Analysis Suite Advanced ECM Suite Cloaking Device [Rating: 90] Favorites ----------- Power Light Ion Engine Engine Light Ion Engine Power Core Micro Nuclear Core Propulsion Gravmag System Treads Light Treads Wheel Compact Wheel Hover Unit Gravmag System Flight Unit Field Propulsion Drive Utility Large Storage Unit Device Improved Heat Sink Storage Large Storage Unit Processor Visual Processing Unit Hackware Hacking Suite Protection Improved Light Armor Plating Weapon Chainsword Energy Gun EM Shotgun Energy Cannon Light EM Pulse Cannon Ballistic Gun Gauss Rifle Ballistic Cannon Assault Cannon Special Weapon Mining Laser Slashing Weapon Chainsword Build | -11 -10 -9 -9 -8 -7 -7 -7 -7 -6 -6 -5 ------- Run | Yrd Mat Mat Min Mat Fac Low Low Dat Pro Fac Fac Slots Evolved 10 | . . 2 . 2 2 . . . . 2 2 Power . | . . . . . . . . . . . . Propulsion 2 | . . . . . 2 . . . . . . Utility 7 | . . 1 . 2 . . . . . 2 2 Weapon 1 | . . 1 . . . . . . . . . Parts Attached 125 | 7 2 10 3 22 38 1 1 . 1 12 28 Power 17 | 1 . 2 . 4 4 . 1 . . 2 3 Engine 7 | 1 . 2 . 1 1 . . . . 2 . Core 10 | . . . . 3 3 . 1 . . . 3 Reactor . | . . . . . . . . . . . . Propulsion 33 | 2 . 2 . 4 12 1 . . 1 2 9 Treads 6 | . . 2 . 4 . . . . . . . Leg . | . . . . . . . . . . . . Wheel 2 | 2 . . . . . . . . . . . Hover 21 | . . . . . 12 1 . . 1 2 5 Flight 4 | . . . . . . . . . . . 4 Utility 46 | 1 2 2 . 8 12 . . . . 8 13 Device 21 | . . 1 . 4 4 . . . . 5 7 Storage 4 | 1 1 . . . 1 . . . . . 1 Processor 9 | . . 1 . 1 2 . . . . 3 2 Hackware 6 | . . . . . 3 . . . . . 3 Protection 6 | . 1 . . 3 2 . . . . . . Artifact . | . . . . . . . . . . . . Weapon 29 | 3 . 4 3 6 10 . . . . . 3 Energy Gun 13 | 3 . 3 3 3 1 . . . . . . Energy Cannon 2 | . . 1 . . . . . . . . 1 Ballistic Gun 6 | . . . . 1 5 . . . . . . Ballistic Cannon 1 | . . . . . 1 . . . . . . Launcher . | . . . . . . . . . . . . Special Weapon 1 | . . . . 1 . . . . . . . Impact Weapon . | . . . . . . . . . . . . Slashing Weapon 6 | . . . . 1 3 . . . . . 2 Piercing Weapon . | . . . . . . . . . . . . Special Melee Weapon . | . . . . . . . . . . . . Unidentified Prototypes 4 | . . . . 1 3 . . . . . . Parts Lost 45 | . . 8 . 5 6 2 . . 1 . 23 Power 3 | . . 1 . . . . . . . . 2 Propulsion 19 | . . 1 . 2 5 2 . . 1 . 8 Utility 11 | . . 1 . 1 1 . . . . . 8 Weapon 12 | . . 5 . 2 . . . . . . 5 Highest Loss Streak 18 | . . 2 . 2 3 2 . . 1 . 18 To Critical Strikes 1 | . . . . 1 . . . . . . . Average Backups 14 | 1 7 13 14 14 14 14 13 14 14 14 14 Power 2 | . 1 2 1 2 2 2 2 3 3 3 2 Propulsion 2 | . 2 4 3 4 2 2 1 1 . 2 3 Utility 5 | . . 1 4 4 7 7 7 7 7 8 7 Weapon 3 | . 3 4 5 3 3 3 3 3 3 . . Tool/Special . | . . . . . . . . . . . . Unused Backups 53 | . 3 2 3 11 7 . . . 1 14 12 Power 15 | . 1 . . 3 3 . . . . 3 5 Propulsion 6 | . . . 3 1 1 . . . . . 1 Utility 25 | . 1 1 . 4 3 . . . 1 9 6 Weapon 7 | . 1 1 . 3 . . . . . 2 . Tool/Special . | . . . . . . . . . . . . Average Slot Usage (%) 94 | . 87 92 100 98 92 90 91 92 92 92 88 Engine 5 | . 14 10 11 4 3 . . . . 5 2 Core 2 | . . . . 4 3 7 7 7 7 . 1 Treads 7 | . . 2 22 17 1 . . . . . . Wheel 2 | . 28 18 . . . . . . . . . Hover 12 | . . . . . 27 30 30 30 30 20 16 Device 10 | . . 8 11 15 8 6 6 7 7 12 13 Storage 8 | . 14 11 11 9 7 7 7 7 7 6 4 Processor 10 | . . 6 11 17 6 7 7 7 7 13 16 Hackware 6 | . . . . . 11 15 15 15 15 13 12 Protection 1 | . 1 3 . 1 2 . . . . . . Energy Gun 12 | . 28 29 33 20 2 . . . . . . Ballistic Gun 1 | . . . . 2 4 . . . . . . Slashing Weapon 8 | . . . . 1 10 15 15 15 15 19 15 Peak Build Rating 90 | 6 8 17 18 34 57 52 52 51 52 74 90 Average Rating 41 | 4 6 14 17 30 47 50 50 51 51 69 79 On Entrance 34 | . 6 8 15 18 33 51 52 51 51 50 74 Avg Prop Armor Cover (%) 11 | . . . . . . . . . . 23 10 Naked Turns . | . . . . . . . . . . . . Heaviest Build 47 | 14 32 39 33 43 43 33 33 32 32 44 47 Greatest Support 53 | 32 32 40 40 45 42 34 34 34 34 52 53 Greatest Overweight (x) 8 | . . 2 . 1 1 . . . 1 3 8 Average Overweight (x) . | . . . . . . . . . . . . Largest Inventory Capacity 15 | 8 15 15 15 15 15 15 15 15 15 15 15 Average Capacity 14 | 7 8 15 15 15 15 15 15 15 15 15 14 Most Carried 15 | 4 9 15 15 15 15 15 14 14 15 15 15 Average Carried 14 | 1 7 13 14 14 14 14 13 14 14 14 14 Final Capacity 15 | 8 15 15 15 15 15 15 15 15 15 15 5 Final Carried 15 | 4 9 15 14 15 15 13 14 14 14 15 5 Class Distribution -------------------- 31% | Skirmisher 23% | Hacker-Mutant 12% | Hacker-Scout 5% | Mutant 5% | Assassin 4% | Tank 4% | Scout Dominant Class ---------------- Mutant | -10/Materials Skirmisher | -9/Materials Skirmisher | -9/Mines Skirmisher | -8/Materials Hacker-Mutant | -7/Factory Hacker-Mutant | -7/Lower Caves Hacker-Mutant | -7/Lower Caves Hacker-Mutant | -7/Data Miner Hacker-Mutant | -6/Proximity Caves Hacker-Scout | -6/Factory Hacker-Ninja | -5/Factory Resources | -11 -10 -9 -9 -8 -7 -7 -7 -7 -6 -6 -5 ----------- Run | Yrd Mat Mat Min Mat Fac Low Low Dat Pro Fac Fac Matter Collected 2402 | 237 33 110 45 383 842 111 59 . 10 150 422 Remotely . | . . . . . . . . . . . . Salvage Created 3495 | . 245 575 44 758 660 81 385 . . 220 527 Parts 191 | . 13 36 3 34 47 6 11 . . 15 26 Haulers Intercepted . | . . . . . . . . . . . . Recyclers Shooed 3 | . . . . 1 2 . . . . . . Parts Field Recycled . | . . . . . . . . . . . . Retrieved Matter . | . . . . . . . . . . . . Parts Self-Destructed 13 | . . . . . . 6 7 . . . . Prevented . | . . . . . . . . . . . . Parts Restored . | . . . . . . . . . . . . Kills | -11 -10 -9 -9 -8 -7 -7 -7 -7 -6 -6 -5 ------- Run | Yrd Mat Mat Min Mat Fac Low Low Dat Pro Fac Fac Combat Hostiles Destroyed 71 | . 5 13 1 20 14 3 3 . . 3 9 Melee 22 | . . . . . 5 3 3 . . 3 8 Guns 43 | . 5 11 1 17 9 . . . . . . Cannons 1 | . . . . . . . . . . . 1 AOE 3 | . . 2 . 1 . . . . . . . Classes Destroyed 13 | . 2 4 . . 2 . 1 . . 2 2 Worker 2 | . . . . . . . . . . . 2 Tunneler 2 | . 1 . . . . . . . . . 1 Recycler 2 | . . . . . . . . . . 1 1 Operator 4 | . . 1 . . 2 . . . . . 1 Watcher 1 | . . . . . 1 . . . . . . Swarmer 26 | . . 3 . 7 3 3 3 . . . 7 Cutter 2 | . . . . . . . . . . 2 . Grunt 25 | . 5 6 1 9 4 . . . . . . Brawler 1 | . . . . . . . . . . . 1 Duelist 2 | . . 1 . . . . . . . . 1 Sentry 8 | . . 3 . 4 1 . . . . . . Programmer 7 | . . . . . 6 . . . . 1 . Tinkerer 1 | . . . . . . . 1 . . . . Best Kill Streak 6 | . 4 4 1 6 2 3 3 . . 2 4 Combat Bots Only 6 | . 2 4 1 6 2 3 3 . . 2 4 Max Kills in Single Turn 2 | . 1 2 1 2 1 1 1 . . 1 1 Gunslinging 1 | . . . . 1 . . . . . . . Exploded 2 | . . 2 . 1 . . . . . . . Melee 1 | . . . . . 1 1 1 . . 1 1 Uniques/NPCs Destroyed . | . . . . . . . . . . . . Combat | -11 -10 -9 -9 -8 -7 -7 -7 -7 -6 -6 -5 -------- Run | Yrd Mat Mat Min Mat Fac Low Low Dat Pro Fac Fac Hostile Shots Fired 557 | . 14 81 6 99 103 33 14 . 12 7 188 Missed 175 | . 5 16 4 25 37 9 5 . 8 4 62 Hits 382 | . 9 65 2 74 66 24 9 . 4 3 126 Melee 11 | . . 5 . . . . . . . . 6 Projectile 371 | . 9 60 2 74 66 24 9 . 4 3 120 AOE 3 | . . . . 1 2 . . . . . . Critical Strikes 15 | . . . . 3 5 1 . . . 1 5 Damage Taken 6456 | . 163 854 91 1149 1093 278 140 . 42 48 2598 Core 1811 | . 40 206 . 156 274 64 27 . 6 32 1006 Absorbed by Shields . | . . . . . . . . . . . . Redirected to Shielding 21 | . . . . . 21 . . . . . . Regen/Repaired (Parts) 45 | . . . . . 45 . . . . . . Core Remaining (%) 74 | 100 84 . 48 71 . . . . 47 96 . Volleys Fired 151 | . 9 39 3 64 32 . . . . . 4 Largest 3 | . 2 3 3 3 3 . . . . . 1 Hottest 184 | . 80 162 135 184 146 . . . . . 81 Shots Fired 380 | . 18 93 9 164 92 . . . . . 4 Gun 363 | . 18 89 9 155 92 . . . . . . Cannon 8 | . . 4 . . . . . . . . 4 Launcher . | . . . . . . . . . . . . Special 9 | . . . . 9 . . . . . . . Kinetic 111 | . . . . 31 80 . . . . . . Thermal 157 | . . 53 . 98 6 . . . . . . Explosive . | . . . . . . . . . . . . Electromagnetic 112 | . 18 40 9 35 6 . . . . . 4 Robot Hit Streak 22 | . 12 7 8 22 6 . . . . . 2 Robot Miss Streak 9 | . 1 4 1 3 9 . . . . . 1 Penetration Max 1 | . . . . . 1 . . . . . . Secondary Targets 10 | . . 3 . 6 1 . . . . . . Max Gunslinging Chain 2 | . . 1 . 2 1 . . . . . . Shots Hit Robots 326 | . 15 54 8 116 62 5 17 . . 7 42 Core Hits 139 | . 11 23 5 42 31 3 6 . . 4 14 Critical Kills . | . . . . . . . . . . . . Critical Parts Destroyed . | . . . . . . . . . . . . Critical Strikes 14 | . 1 2 . 4 2 . . . . . 5 Burn 5 | . . 1 . 4 . . . . . . . Corrupt 2 | . 1 1 . . . . . . . . . Sever 7 | . . . . . 2 . . . . . 5 Melee Attacks 169 | . . . . 5 38 8 18 . . 32 68 Impact . | . . . . . . . . . . . . Slashing 169 | . . . . 5 38 8 18 . . 32 68 Piercing . | . . . . . . . . . . . . Sneak Attacks 12 | . . . . . . . 3 . . 1 8 Combat Hostiles . | . . . . . . . . . . . . Follow-up Attacks 28 | . . . . . 7 1 2 . . 2 16 Damage Inflicted 8444 | . 427 839 188 2056 1574 192 1057 . . 295 1816 Guns 3835 | . 218 743 132 1890 852 . . . . . . Cannons 94 | . . 37 . . . . . . . . 57 Explosions 490 | . 209 59 56 166 . . . . . . . Melee 4022 | . . . . . 721 192 1057 . . 295 1757 Ramming 3 | . . . . . 1 . . . . . 2 Kinetic 1012 | . . . . 267 745 . . . . . . Thermal 2095 | . 209 428 56 1362 40 . . . . . . Explosive . | . . . . . . . . . . . . Electromagnetic 1312 | . 218 411 132 427 67 . . . . . 57 Impact . | . . . . . . . . . . . . Slashing 4022 | . . . . . 721 192 1057 . . 295 1757 Piercing . | . . . . . . . . . . . . Highest Corruption 7 | . 1 . . . 3 3 3 3 3 1 7 Average Corruption 2 | . 1 . . . 2 3 3 3 3 1 2 Corruption Purged . | . . . . . . . . . . . . Corruption Blocked . | . . . . . . . . . . . . Effects 31 | . . . . . 11 6 3 . 4 2 5 Message Errors 11 | . . . . . 3 1 1 . 3 . 3 Matter Fused 4 | . . . . . 2 1 1 . . . . Heat Flow Errors 4 | . . . . . 1 2 . . . 1 . Energy Discharges 2 | . . . . . 1 1 . . . . . Parts Rejected 1 | . . . . . . . . . . . 1 Data Loss (minor) 5 | . . . . . 2 1 . . 1 1 . Data Loss (major) 1 | . . . . . 1 . . . . . . Alerts 3 | . . . . . 1 . 1 . . . 1 Overload Shots . | . . . . . . . . . . . . Overflow Damage 906 | . 19 . . . 7 . 467 . . 14 399 Projectiles . | . . . . . . . . . . . . Explosions 19 | . 19 . . . . . . . . . . Melee 887 | . . . . . 7 . 467 . . 14 399 Knockbacks . | . . . . . . . . . . . . Impact . | . . . . . . . . . . . . Kinetic . | . . . . . . . . . . . . Secondary . | . . . . . . . . . . . . Self-Inflicted Damage 107 | . 53 . . 53 . . . . . . 1 Shots 3 | . 2 . . 1 . . . . . . . Rammed 2 | . . . . . 1 . . . . . 1 Targets Rammed 2 | . . . . . 1 . . . . . 1 Kicked . | . . . . . . . . . . . . Crushed . | . . . . . . . . . . . . Highest Temperature 396 | . 143 331 48 321 396 132 . . . 195 48 Average Temperature 119 | . 62 130 24 119 142 65 . . . 107 25 Received Heat Transfer 1176 | . 63 192 30 453 216 . . . 15 . 207 Effects 10 | . . 2 . 4 4 . . . . . . Shutdowns 2 | . . 1 . . 1 . . . . . . Energy Bleed 3 | . . . . 1 2 . . . . . . Interference 4 | . . 1 . 3 . . . . . . . Short Circuit 1 | . . . . . 1 . . . . . . Siege Activations . | . . . . . . . . . . . . Martial Activations . | . . . . . . . . . . . . Shielding Activations . | . . . . . . . . . . . . Robots Disrupted . | . . . . . . . . . . . . Combat Hostiles . | . . . . . . . . . . . . Robots Corrupted . | . . . . . . . . . . . . Combat Hostiles . | . . . . . . . . . . . . Parts Fried 4 | . . 2 . 2 . . . . . . . Impact Corruptions . | . . . . . . . . . . . . Robots Melted 2 | . . . . 2 . . . . . . . Combat Hostiles 2 | . . . . 2 . . . . . . . Parts Melted 10 | . . 4 . 5 1 . . . . . . Heat Transferred 4535 | . 300 1136 100 2925 74 . . . . . . Parts Sabotaged . | . . . . . . . . . . . . Parts Stolen . | . . . . . . . . . . . . Parts Stripped . | . . . . . . . . . . . . Power Chain Reactions 7 | . 4 1 1 1 . . . . . . . Alert | -11 -10 -9 -9 -8 -7 -7 -7 -7 -6 -6 -5 ------- Run | Yrd Mat Mat Min Mat Fac Low Low Dat Pro Fac Fac Maximum Alert Level 1 | . . . . . 1 . . . . . . Low Security (%) 98 | 100 100 100 100 100 92 . . . . 100 100 Level 1 1 | . . . . . 7 . . . . . . Level 2 . | . . . . . . . . . . . . Level 3 . | . . . . . . . . . . . . Level 4 . | . . . . . . . . . . . . Level 5 . | . . . . . . . . . . . . High Security . | . . . . . . . . . . . . Max Security . | . . . . . . . . . . . . Peak Influence 217 | . 144 110 111 188 217 . . . . 50 193 Initial 38 | . . 22 24 38 . . . . . 12 . Average 56 | . 60 50 11 88 93 . . . . 6 56 Influence Increases 3064 | . 200 400 198 614 666 100 85 . 60 141 600 Destroy 0b10 Robot/C 1520 | . 100 260 120 400 280 60 60 . . 60 180 Destroy 0b10 Robot/NC 70 | . 5 5 . . 15 . 15 . . 5 25 Destroy Leader 392 | . 30 70 20 100 112 10 10 . . 20 20 Allied During Kill 17 | . . . 16 1 . . . . . . . Successful Hack 145 | . 23 16 . 4 68 . . . . 26 8 Disable Machine 135 | . 30 . 15 30 45 . . . . 15 . Destroy Structure 95 | . 12 4 12 19 11 . . . . 15 22 Partial Spotted 75 | . . . . 15 45 . . . . . 15 Lose Combat Pursuer 615 | . . 45 15 45 90 30 . . 60 . 330 Influence Decreases 2928 | . 146 390 163 713 456 208 121 66 40 160 465 Entered New Map 307 | . . 32 40 61 . 78 21 66 . 8 1 Time Decay 2033 | . 146 278 123 446 396 110 100 . 40 152 242 Lost Part 372 | . . 80 . 50 60 20 . . . . 162 Lost Ally 100 | . . . . 40 . . . . . . 60 Purge Threat 116 | . . . . 116 . . . . . . . Squads Dispatched 33 | . 1 2 . 3 13 . . . . 5 9 Investigation 7 | . . 1 . 1 1 . . . . 2 2 Extermination 12 | . . . . . 8 . . . . 2 2 Reinforcement 11 | . 1 1 . 2 1 . . . . 1 5 Assault . | . . . . . . . . . . . . Garrison 3 | . . . . . 3 . . . . . . Intercept . | . . . . . . . . . . . . Searches Triggered . | . . . . . . . . . . . . Construction Impeded 2 | . . . . 1 . . . . . . 1 Haulers Reinforced . | . . . . . . . . . . . . Active Scanning Responses . | . . . . . . . . . . . . Cargo Convoy Interrupts . | . . . . . . . . . . . . Stealth | -11 -10 -9 -9 -8 -7 -7 -7 -7 -6 -6 -5 --------- Run | Yrd Mat Mat Min Mat Fac Low Low Dat Pro Fac Fac Distress Signals 11 | . . 5 . 2 . . . . . 1 3 Communications Jammed . | . . . . . . . . . . . . Distress Signals . | . . . . . . . . . . . . Times Spotted 172 | . 8 32 6 34 29 5 6 . 3 5 44 Peak Tracking Total 12 | . 2 9 4 7 5 5 3 . 3 2 12 Tactical Retreats 19 | . . 3 1 2 2 1 . . 3 . 7 Traps | -11 -10 -9 -9 -8 -7 -7 -7 -7 -6 -6 -5 ------- Run | Yrd Mat Mat Min Mat Fac Low Low Dat Pro Fac Fac Traps Triggered 18 | . 1 . . 3 5 . . . . 2 7 Indirectly . | . . . . . . . . . . . . Trap Hack Attempts . | . . . . . . . . . . . . Triggered . | . . . . . . . . . . . . Disarmed . | . . . . . . . . . . . . Reprogrammed . | . . . . . . . . . . . . Reused . | . . . . . . . . . . . . Traps Extracted . | . . . . . . . . . . . . Installed . | . . . . . . . . . . . . Triggered . | . . . . . . . . . . . . Machines | -11 -10 -9 -9 -8 -7 -7 -7 -7 -6 -6 -5 ---------- Run | Yrd Mat Mat Min Mat Fac Low Low Dat Pro Fac Fac Machines Disabled 9 | . 2 . 1 2 3 . . . . 1 . Max in Single Turn 1 | . 1 . . 1 1 . . . . 1 . Machines Repaired . | . . . . . . . . . . . . Machines Dismantled . | . . . . . . . . . . . . Machines Sabotaged . | . . . . . . . . . . . . Overloaded Fab Kills . | . . . . . . . . . . . . Hacking | -11 -10 -9 -9 -8 -7 -7 -7 -7 -6 -6 -5 --------- Run | Yrd Mat Mat Min Mat Fac Low Low Dat Pro Fac Fac Machines Accessed 71 | . 3 4 . 8 24 1 . 3 . 16 12 Terminals 38 | . 3 2 . 6 12 1 . . . 8 6 Fabricators 5 | . . . . . 3 . . . . 2 . Repair Stations 9 | . . . . . 5 . . . . 2 2 Recycling Units 5 | . . . . . 1 . . . . 2 2 Scanalyzers 9 | . . 2 . 1 2 . . . . 2 2 Garrison Access 2 | . . . . 1 1 . . . . . . Total Hacks 195 | . 7 15 . 16 57 2 . 27 . 40 31 Successful 101 | . 4 9 . 6 22 2 . 27 . 21 10 Failed 92 | . 3 5 . 10 35 . . . . 18 21 Catastrophic 14 | . . . . 1 10 . . . . 1 2 Database Lockouts 2 | . . 1 . . . . . . . 1 . Manual 20 | . 2 3 . 4 6 . . . . 2 3 Terminals 98 | . 7 4 . 12 32 2 . . . 24 17 Fabricators 9 | . . . . . 5 . . . . 4 . Repair Stations 18 | . . . . . 10 . . . . 4 4 Recycling Units 11 | . . . . . 4 . . . . 4 3 Scanalyzers 28 | . . 11 . 2 4 . . . . 4 7 Garrison Access 4 | . . . . 2 2 . . . . . . Terminal Hacks 63 | . 3 3 . 3 9 2 . 27 . 13 3 Record 12 | . . . . . 1 2 . 6 . 2 1 Part Schematic 12 | . . . . . . . . 12 . . . Robot Schematic 6 | . . . . . . . . 6 . . . Robot Analysis 1 | . . . . . . . . . . 1 . Prototype ID Bank 8 | . 1 1 . 1 1 . . 3 . 1 . Open DSF 1 | . . . . . . . . . . . 1 Branch Access Points 2 | . . 1 . . 1 . . . . . . Emergency Access Points 3 | . . . . 1 1 . . . . 1 . Terminal Index 2 | . . 1 . . . . . . . 1 . Fabricator Index 1 | . . . . . . . . . . 1 . Scanalyzer Index 1 | . . . . . 1 . . . . . . Alert Level 2 | . . . . . 1 . . . . 1 . Unreport Threat 1 | . . . . 1 . . . . . . . Locate Traps 4 | . . . . . 3 . . . . 1 . Dispatch Records 1 | . . . . . . . . . . 1 . Recall Investigation 1 | . . . . . . . . . . 1 . Hauler Manifests 2 | . 1 . . . . . . . . 1 . Registered Components 3 | . 1 . . . . . . . . 1 1 Fabricator Hacks 5 | . . . . . 2 . . . . 3 . Network Status 2 | . . . . . 2 . . . . . . Load Schematic 2 | . . . . . . . . . . 2 . Build 1 | . . . . . . . . . . 1 . Repair Station Hacks 7 | . . . . . 6 . . . . . 1 Scan Component 5 | . . . . . 4 . . . . . 1 Repair 2 | . . . . . 2 . . . . . . Recycling Unit Hacks 9 | . . . . . 3 . . . . 3 3 Process 2 | . . . . . 1 . . . . . 1 Report Inventory 5 | . . . . . 1 . . . . 2 2 Retrieve Matter 1 | . . . . . 1 . . . . . . Retrieve Components 1 | . . . . . . . . . . 1 . Scanalyzer 13 | . . 6 . 1 1 . . . . 2 3 Insert Component 7 | . . 5 . 1 . . . . . 1 . Retrieve Study 6 | . . 1 . . 1 . . . . 1 3 Garrison Access Hacks 1 | . . . . 1 . . . . . . . Unlock Access 1 | . . . . 1 . . . . . . . Unauthorized Hacks 3 | . 1 . . 1 1 . . . . . . Terminals 3 | . 1 . . 1 1 . . . . . . Assimilate 3 | . 1 . . 1 1 . . . . . . Fabricators . | . . . . . . . . . . . . Repair Stations . | . . . . . . . . . . . . Recycling Units . | . . . . . . . . . . . . Scanalyzers . | . . . . . . . . . . . . Garrison Access . | . . . . . . . . . . . . Data Cores Recovered 2 | . . 1 . . 1 . . . . . . Used 1 | . . . . . 1 . . . . . . Hacking Detections 53 | . 2 2 . 8 21 . . . . 12 8 Full Trace Events 5 | . . 1 . . 1 . . . . 2 1 Feedback Events . | . . . . . . . . . . . . Feedback Blocked . | . . . . . . . . . . . . Robot Schematics Acquired 6 | . . . . . . . . 6 . . . Robots Built . | . . . . . . . . . . . . Authchips . | . . . . . . . . . . . . Time . | . . . . . . . . . . . . Total Robot Build Rating . | . . . . . . . . . . . . Part Schematics Acquired 12 | . . . . . . . . 12 . . . Parts Built 1 | . . . . . . . . . . 1 . Authchips . | . . . . . . . . . . . . Time 152 | . . . . . . . . . . 152 . Total Part Build Rating 5 | . . . . . . . . . . 5 . Part Studies Acquired 6 | . . 1 . . 1 . . . . 1 3 Parts Repaired 2 | . . . . . 2 . . . . . . Time 180 | . . . . . 180 . . . . . . Parts Recycled . | . . . . . . . . . . . . Recycled Matter 58 | . . . . . 8 . . . . . 50 Retrieved Matter 8 | . . . . . 8 . . . . . . Retrieved Components 4 | . . . . . . . . . . 4 . Parts Scanalyzed 1 | . . . . 1 . . . . . . . Part Schematics Acquired . | . . . . . . . . . . . . Parts Damaged 1 | . . . . 1 . . . . . . . Bothacking | -11 -10 -9 -9 -8 -7 -7 -7 -7 -6 -6 -5 ------------ Run | Yrd Mat Mat Min Mat Fac Low Low Dat Pro Fac Fac Used RIF Installer . | . . . . . . . . . . . . Robots Hacked . | . . . . . . . . . . . . Non-combat . | . . . . . . . . . . . . Combat . | . . . . . . . . . . . . Robot Hacks Applied . | . . . . . . . . . . . . Relay Couplers Released . | . . . . . . . . . . . . Fabnet Peak Effective % . | . . . . . . . . . . . . Robots Rewired . | . . . . . . . . . . . . Allies Hacked . | . . . . . . . . . . . . Hacks Repelled . | . . . . . . . . . . . . Allies | -11 -10 -9 -9 -8 -7 -7 -7 -7 -6 -6 -5 -------- Run | Yrd Mat Mat Min Mat Fac Low Low Dat Pro Fac Fac Total Allies 3 | . . . 2 1 . . . . . . . Largest Group 2 | . . . 2 2 1 . . . . . . Highest-Rated Group 40 | . . . 40 37 10 . . . . . . Highest-Rated Ally 31 | . . . 31 28 10 . . . . . . Total Orders 6 | . . . . . . . . . . . 6 EXPLORE 6 | . . . . . . . . . . . 6 Ally Attacks 14 | . . . 12 2 . . . . . . . Total Damage 344 | . . . 303 41 . . . . . . . Kills 5 | . . . 5 . . . . . . . . Allies Corrupted . | . . . . . . . . . . . . Allies Melted . | . . . . . . . . . . . . Intel | -11 -10 -9 -9 -8 -7 -7 -7 -7 -6 -6 -5 ------- Run | Yrd Mat Mat Min Mat Fac Low Low Dat Pro Fac Fac Active Infowar (turns) 8128 | . . 353 1586 1680 1759 197 198 37 229 1133 956 Optics 5712 | . . 353 1586 1680 356 . . . . 1133 604 Sensors 5723 | . . . . 1326 1730 197 198 37 229 1119 887 IFF 1 | . . . . . . . . . . 1 . Terrain 1346 | . . . . 216 699 . . . . . 431 Triangulation 400 | . . . . . . . . . . . 400 Jamming 60 | . . . . . . . . . . . 60 Robot Analysis Total 1 | . . . . . . . . . . 1 . Derelict Logs Recovered 5 | . . . 3 . . 1 1 . . . . Drone Launches 18 | . . . . . . . . . . . 18 Drone Recoveries 5 | . . . . . . . . . . . 5 Exploration | -11 -10 -9 -9 -8 -7 -7 -7 -7 -6 -6 -5 ------------- Run | Yrd Mat Mat Min Mat Fac Low Low Dat Pro Fac Fac Turns Passed 9314 | 52 362 632 1586 1680 2117 220 216 37 229 1133 1050 Spaces Moved 9984 | 39 312 402 970 799 2902 429 398 87 500 1936 1210 Core 15 | 1 . . . . . . . . . 11 3 Treads 1916 | . . 52 970 799 95 . . . . . . Legs . | . . . . . . . . . . . . Wheels 700 | 38 312 350 . . . . . . . . . Hover 7265 | . . . . . 2807 429 398 87 500 1925 1119 Flight 88 | . . . . . . . . . . . 88 Fastest Speed 32 | 50 100 100 160 152 43 43 43 43 43 43 32 Average Speed 76 | 98 100 118 160 162 59 43 43 43 43 48 58 Slowest Speed 450 | 100 100 160 160 250 152 43 43 43 105 200 450 Overloaded Moves . | . . . . . . . . . . . . Propulsion Burnouts . | . . . . . . . . . . . . Robots Hopped 2 | . . . . . . . . . . . 2 Potential Cave-ins . | . . . . . . . . . . . . Cave-ins Triggered . | . . . . . . . . . . . . Exploration Rate (%) 56 | 4 64 40 99 63 63 65 54 69 62 46 48 Regions Visited 11 Branch Regions 5 Pre-discovered Areas 3 | . . . 1 . . 1 . 1 . . . Known Exits Taken 8 | . . 1 . 1 1 1 1 1 1 1 . Unknown Exits Taken 3 | 1 1 . 1 . . . . . . . . Scrap Searched 6 | . . . 2 . . 1 1 . 2 . . Spaces Dug 47 | . . . . 10 8 2 . . . 15 12 Terrain Destroyed 79 | . 10 3 4 23 10 2 . . . 15 12 Melee 42 | . . . . 5 8 2 . . . 15 12 Projectile 7 | . . . . 5 2 . . . . . . AOE 30 | . 10 3 4 13 . . . . . . . Terrain Rammed . | . . . . . . . . . . . . Walls Destroyed . | . . . . . . . . . . . . Machines Disabled . | . . . . . . . . . . . . Actions | -11 -10 -9 -9 -8 -7 -7 -7 -7 -6 -6 -5 --------- Run | Yrd Mat Mat Min Mat Fac Low Low Dat Pro Fac Fac Total 11148 | 49 346 477 999 1025 3208 455 419 86 512 2100 1472 Wait 385 | . 12 6 14 77 70 15 2 . 9 62 118 Move 9970 | 38 311 401 969 798 2901 428 397 86 499 1935 1207 Hop 1 | . . . . . . . . . . . 1 Pick Up 143 | 4 8 15 5 21 38 . 1 . 2 25 24 Fast Attach 46 | 6 1 2 . 11 13 . 1 . . 6 6 Attach 60 | . . 7 1 3 19 4 1 . 1 3 21 Detach 13 | . . . . . 9 2 1 . . . 1 Swap 75 | 1 1 4 2 22 28 . . . . 7 10 Drop 135 | . 4 3 5 24 42 . 1 . 1 30 25 Fire 151 | . 9 39 3 64 32 . . . . . 4 Melee 127 | . . . . 5 29 6 15 . . 24 48 Ram 2 | . . . . . 1 . . . . . 1 Kick . | . . . . . . . . . . . . Crush . | . . . . . . . . . . . . Escape Stasis 34 | . . . . . 26 . . . . 8 . Rewire . | . . . . . . . . . . . . Trap . | . . . . . . . . . . . . Miscellaneous 6 | . . . . . . . . . . . 6 Route ------- -11/Scrapyard -10/Materials (discovered 2 exits: *Mat x2) -9/Materials (discovered 3 exits: *Mat / *Min / Sto) -9/Mines (discovered 2 exits: *Mat x2) -8/Materials (discovered 2 exits: *Fac / Gar) -7/Factory (discovered 4 exits: *Fac x2 / *Low x2) -7/Lower Caves -7/Lower Caves -7/Data Miner -6/Proximity Caves -6/Factory (discovered 3 exits: *Fac x2 / *Ext) -5/Factory (discovered 4 exits: *Fac x3 / [*Upp]) History --------- Turn | Location | Event 24 | -11/Scrapyard | Discovered new exit (range 16) 53 | -11/Scrapyard | Entered Materials 228 | -10/Materials | Discovered new exit (range 4) 316 | -10/Materials | Build established: Mutant 379 | -10/Materials | Discovered new exit (range 16) 415 | -10/Materials | Entered another Materials area 415 | -9/Materials | Evolved 2 slots: Utility x1, Weapon x1 445 | -9/Materials | Central database locked down 608 | -9/Materials | Discovered new exit (range 16) 677 | -9/Materials | Identified exit to Mines 677 | -9/Materials | Identified exit to Storage 1044 | -9/Materials | Core integrity fell below 50% 1047 | -9/Materials | Entered Mines 1248 | -9/Mines | Found a damaged Exp. Sensor Array with a note attached 1251 | -9/Mines | Found Prototype Device 1350 | -9/Mines | Build established: Skirmisher 1437 | -9/Mines | Discovered new exit (range 7) 1500 | -9/Mines | Learned 4 Materials zone layouts 1526 | -9/Mines | Learned location of Zion (-6) 1585 | -9/Mines | Learned Materials terminal intel 1600 | -9/Mines | Discovered new exit (range 10) 2633 | -9/Mines | Entered Materials 2633 | -8/Materials | Accompanied by 2 allies 2633 | -8/Materials | Evolved 2 slots: Utility x2 2635 | -8/Materials | Loaded intel: 12 terminal locations 2638 | -8/Materials | Led the pair of lost Derelicts to an unsafe place 3629 | -8/Materials | Identified exit to Garrison 3999 | -8/Materials | Identified Exp. Sensor Array 4270 | -8/Materials | Build established: Assassin 4300 | -8/Materials | Discovered new exit (range 5) 4306 | -8/Materials | Identified exit to Factory 4313 | -8/Materials | Entered Factory 4313 | -7/Factory | Accompanied by 1 ally 4313 | -7/Factory | Evolved 2 slots: Propulsion x2 4686 | -7/Factory | Discovered new exit (range 2) 4687 | -7/Factory | Identified exit to Factory 4766 | -7/Factory | Build established: Scout 5160 | -7/Factory | Garrison activated, responded to threat 5491 | -7/Factory | Lost 3 parts (2n1u) 5782 | -7/Factory | Repaired Broken Exp. Sensor Array 5835 | -7/Factory | Build established: Hacker-Mutant 5866 | -7/Factory | Discovered exit to Factory (range 7) 6275 | -7/Factory | Identified exit to Lower Caves 6375 | -7/Factory | Repaired Gravmag System 6430 | -7/Factory | Entered Lower Caves 6438 | -7/Lower Caves | Encountered a Warlord checkpoint 6549 | -7/Lower Caves | Spotted B-75 Beast 6645 | -7/Lower Caves | Discovered new exit (range 7) 6647 | -7/Lower Caves | Identified exit to Lower Caves 6650 | -7/Lower Caves | Entered another Lower Caves area 6704 | -7/Lower Caves | Core integrity fell below 50% 6739 | -7/Lower Caves | Encountered a Warlord checkpoint 6804 | -7/Lower Caves | Learned Factory terminal intel 6816 | -7/Lower Caves | Discovered new exit (range 15) 6841 | -7/Lower Caves | Identified exit to Data Miner 6864 | -7/Lower Caves | Ambushed by research squad 6866 | -7/Lower Caves | Entered Data Miner 6866 | -7/Data Miner | Discovered new exit (range 6) 6871 | -7/Data Miner | Identified exit to Proximity Caves 6876 | -7/Data Miner | Met Data Miner 6886 | -7/Data Miner | Learned location of Section 7 (-2) 6886 | -7/Data Miner | Acquired the access code to Warlord's prototype stash 6894 | -7/Data Miner | Received God Mode back door access code from Data Miner 6903 | -7/Data Miner | Entered Proximity Caves 7033 | -6/Proximity Caves | Attracted the attention of an 0b10 checkpoint 7125 | -6/Proximity Caves | Discovered exit to Factory (range 9) 7132 | -6/Proximity Caves | Entered Factory 7132 | -6/Factory | Evolved 2 slots: Utility x2 7133 | -6/Factory | Loaded intel: 28 terminal locations 7424 | -6/Factory | Central database locked down 7428 | -6/Factory | Discovered new exit (range 12) 7433 | -6/Factory | Identified exit to Factory 7438 | -6/Factory | Build established: Hacker-Scout 7470 | -6/Factory | Discovered new exit (range 15) 7476 | -6/Factory | Identified exit to Extension 7976 | -6/Factory | Fabricated Gravity Neutralizer? 8244 | -6/Factory | Discovered exit to Factory (range 22) 8265 | -6/Factory | Entered another Factory area 8265 | -5/Factory | Evolved 2 slots: Utility x2 8279 | -5/Factory | Identified exit to DSF 8407 | -5/Factory | Discovered new exit (range 17) 8856 | -5/Factory | Discovered new exit (range 9) 8860 | -5/Factory | Identified exit to Factory 9101 | -5/Factory | Watched by a mysterious "MATRIX" hacker. 9135 | -5/Factory | Discovered exit to Factory (range 27) 9140 | -5/Factory | Discovered exit to Factory (range 43) 9227 | -5/Factory | Lost 7 allies 9245 | -5/Factory | Core integrity fell below 50% 9296 | -5/Factory | Core integrity fell below 20% 9315 | -5/Factory | Destroyed by G-50 Soldier with Heavy Laser Last Messages --------------- 09282_ S-27 Virus destroyed. 09283_ Mic. Fission Core+ destroyed. 09285_ Cld. Cesium-ion Thruster destroyed. 09290_ Nuclear Pulse Thruster destroyed. 09294_ Lrn. Proton Cannon destroyed. 09297_ System corrupted: Gravity Neutralizer rejected. 09297_ Dropped Med. Storage Unit. 09300_ Acquired 10 matter. 09303_ S-27 Virus destroyed. 09303_ R-10 Processor collects Lgt. Nuclear Core. 09306_ P-70 Sage resets R-10 Processor, system corruption cleaned. 09310_ Penetrated by Slug. 09313_ P-70 Sage resets Y-64 Sentinel, system corruption cleaned. 09314_ Field Propulsion Drive destroyed. 09314_ Dropped Mic. Fission Core+. 09314_ Imp. Hacking Suite destroyed. Map ----- +----------------------------------------------------+ | """ ######+####### ## # ! # "G" [#?????? | | """ # %% % !!# ! ## + # """ #?????? | | """ # %"""%=!!!# ## # # #?????? | | # """ !! # ## # [ ##########?????? | | " " # """ % " ## # #??????????????? | | "Y" # ! =* ! # ## #=== !#??????????????? | | """ #################### #=== #??????????????? | | #??????? ??????????# #== #??????????????? | | ####?###??????? ?????????# #######??????????????? | | ???????????????" ???????###/######???????????????? | | ??????????????"" ???????# #???????????????? | | ??????????????"" ""??? ## """ ! #???????????????? | | ??????????# """" """" ## """ #???????????????? | | ??????????# """" """" ## """ #???????????????? | | ??????????# """" """" ## #???????????????? | | ??????????# """" """" ## """ #???????????????? | | ??????????? ## """ #???????????????? | | ????????????? ??# """ #?#########?????? | | ??????????????? ??# # #?????? | | #################+############+### ! #?????? | | g g #?????? | | gg g #?????? | | l < +?????? | | Y #?????? | | %p #?????? | | ################+##### @ ###+### #?????? | | ????????????# # * # # #?????? | | ????????????# !! # % # """ #?#########?????? | | ????????????# !! # # """ #???????????????? | | ????????????# *+ # """ #???????????????? | | ????????????# [%# # #???????????????? | | ????????????# " =#% # """ #???????????????? | | ????????????# " # # """ #???????????????? | | ????????????# " " # # """ #???????????????? | | ????????????# # + #???????????????? | | ????????????########## # #???????????????? | | ?????????????????????# + "T" #???????????????? | | ?????????????????????# # """ #???????????????? | | ?????????????????????# #######???????????????? | | ????????????????########+#########???????????????? | | ????????????????#! #???????????????? | | ????????????????# % #???????????????? | | ????????????????# """""" """""" #???????????????? | | ????????????????# """""" """""" #???????????????? | | ????????????????# """""" """""" #???????????????? | | ????????????????# """""" """""" #???????????????? | | ????????????????# #???????????????? | | ????????????????# #???????????????? | | !???????????????# #???????????????? | | ????????????????###+###+##########???????????????? | +----------------------------------------------------+ Best States ------------- Heat Dissipation 45 Energy Generation 27 Energy Capacity 290 Matter Stores 300 Matter Capacity 300 Sight Range 22 Robot Scan Range 20 Terrain Scan Range 20 Terrain Scan Density 210 Jamming Range 14 Additional Mass Support 12 Corruption Containment 8 Armor Coverage 225 Utility Shielding 66 Melee Speed Boost 20 Evasion (%) 63 Target Analysis 5 Recoil Reduction 2 Kinecelleration 30 Offensive Hacking 24 Defensive Hacking 24 Item Schematics ----------------- Combat Drone Bay | -7/Data Miner | Free Lgt. Regenerative Plating | -7/Data Miner | Free Cld. Cesium-ion Thruster | -7/Data Miner | Free Gravity Neutralizer | -7/Data Miner | Free Antimatter Cannon | -7/Data Miner | Free Arm. Medium Treads | -7/Data Miner | Free Imp. Recalibrator | -7/Data Miner | Free Wave Gun | -7/Data Miner | Free Adv. Sensor Array | -7/Data Miner | Free Imp. Dynamic Insulation System | -7/Data Miner | Free Adv. Cooling System | -7/Data Miner | Free HERF Cannon | -7/Data Miner | Free Robot Schematics ------------------ A-15 Conveyor | -7/Data Miner | Free R-10 Processor | -7/Data Miner | Free G-47 Trooper | -7/Data Miner | Free D-53 Grenadier | -7/Data Miner | Free L-41 Fighter | -7/Data Miner | Free H-66 Slayer | -7/Data Miner | Free Fabricated ------------ Gravity Neutralizer | x1 | -6/Factory Repaired ---------- Exp. Sensor Array | 62% | -7/Factory | Broken Gravmag System | 24% | -7/Factory Studied --------- Hvy. EM Pulse Gun | -9/Materials | Hacked Chainsword | -7/Factory | Hacked Gravmag Array | -6/Factory | Hacked Gravmag System | -5/Factory | Hacked Fusion Compressor | -5/Factory | Hacked Mic. Fission Core | -5/Factory | Hacked Alien Tech Used ----------------- None Achievements -------------- Safety First Challenges ------------ None Game ------ Seed ArmorZipBeacon Manual? 0 Play Time 03:15:21 Cumulative 39.7 hours Start 2026.05.01 @ 07:50:28 End 2026.05.03 @ 18:27:04 Sessions 3 Manual Loads 0 Difficulty Rogue Special Mode None Game No. 43 Rogue 43 Adventurer 0 Explorer 0 Win Type - Total 1 Types 1/0/0/0/0/0/0/0/0/0 Lore% 33 Gallery% 35 Achievement% 31 Wizard Run 0 Options --------- Layout 1 ASCII 0 Keyboard 0 Movement Mouse Keybinds 0 Fullscreen 2 Font 24/Smallcaps Map View 50x35 Zoom Use 0% Tactical HUD 1 Map Filters NONE Filters NONE Steam 1 RUN: f471895b-750d-415e-8b71-f0f8b3eae048